Cogmind - Beta 16 @@@ ROGUE MODE // 2026.02.09 @ 19:47:36 Player: tritri Result: Destroyed by H-66 Slayer with Gauss Rifle Performance ------------- Evolutions (5) 2500 Regions Visited (11) 2200 Robots Destroyed (27) 135 Value Destroyed (714) 714 Prototype IDs (30) 600 Alien Tech Used (0) 0 Bonus (370) 370 TOTAL SCORE: 6519 Bonus ------- Follower Combat Kills 81 Aligned with FarCom 300 Friendly Fire -11 Cogmind --------- Core Integrity 0/1000 Matter 293/300 Energy 99/100 System Corruption 3% Temperature Cool (0) Movement Core (50) Location -5/Extension Parts ------- > --- POWER (1) -------- (None) > --- PROPULSION (6) --- (None) > --- UTILITY (7) ------ Signal Interpreter Advanced Terrain Scan Processor Transport Network Coupler > --- WEAPON (3) ------- (None) > --- INVENTORY (5) ---- Light Ion Engine Medium Storage Unit High-capacity Matter Pod (200) Chronowheel Peak State ------------ > --- POWER ------------ Improved Ion Engine > --- PROPULSION ------- Improved Flight Unit Improved Flight Unit Improved VTOL Module Cooled VTOL Module Cooled VTOL Module Field Propulsion Drive > --- UTILITY ---------- Small Storage Unit Signal Interpreter Advanced Terrain Scan Processor Transport Network Coupler Improved Targeting Computer > --- WEAPON ----------- High-powered Shock Rifle Improved Medium Laser > --- INVENTORY -------- Light Ion Engine Medium Storage Unit High-capacity Matter Pod Chronowheel [Rating: 46] Favorites ----------- Power Light Nuclear Core Engine Ion Engine Power Core Light Nuclear Core Propulsion Aluminum Leg Leg Aluminum Leg Flight Unit Cooled VTOL Module Utility Signal Interpreter Device Improved Heat Sink Storage Medium Storage Unit Processor Signal Interpreter Hackware Hacking Suite Weapon Light Assault Rifle Energy Gun Particle Gun Ballistic Gun Light Assault Rifle Slashing Weapon Scythe Build | -11 -10 -10 -10 -9 -8 -7 -7 -7 -6 -5 -5 ------- Run | Yrd Mat Min Exi Min Mat Fac Was Fac Fac Fac Ext Slots Evolved 10 | . . . . . 4 2 . . 2 2 . Power . | . . . . . . . . . . . . Propulsion 4 | . . . . . 1 1 . . . 2 . Utility 5 | . . . . . 2 1 . . 2 . . Weapon 1 | . . . . . 1 . . . . . . Parts Attached 48 | 6 6 1 . . 15 6 . 6 2 6 . Power 7 | 1 1 . . . 2 . . 1 . 2 . Engine 5 | 1 . . . . 2 . . . . 2 . Core 2 | . 1 . . . . . . 1 . . . Reactor . | . . . . . . . . . . . . Propulsion 20 | 2 2 . . . 6 2 . 5 1 2 . Treads . | . . . . . . . . . . . . Leg 5 | 2 2 . . . 1 . . . . . . Wheel . | . . . . . . . . . . . . Hover . | . . . . . . . . . . . . Flight 15 | . . . . . 5 2 . 5 1 2 . Utility 10 | 1 2 . . . 2 3 . . 1 1 . Device 1 | . . . . . 1 . . . . . . Storage 3 | 1 1 . . . . . . . . 1 . Processor 5 | . 1 . . . . 3 . . 1 . . Hackware 1 | . . . . . 1 . . . . . . Protection . | . . . . . . . . . . . . Artifact . | . . . . . . . . . . . . Weapon 11 | 2 1 1 . . 5 1 . . . 1 . Energy Gun 9 | 1 1 1 . . 4 1 . . . 1 . Energy Cannon . | . . . . . . . . . . . . Ballistic Gun 1 | 1 . . . . . . . . . . . Ballistic Cannon . | . . . . . . . . . . . . Launcher . | . . . . . . . . . . . . Special Weapon . | . . . . . . . . . . . . Impact Weapon . | . . . . . . . . . . . . Slashing Weapon 1 | . . . . . 1 . . . . . . Piercing Weapon . | . . . . . . . . . . . . Special Melee Weapon . | . . . . . . . . . . . . Unidentified Prototypes 7 | . . . . . 4 . . 3 . . . Parts Lost 24 | . 1 1 . . 5 . . . 5 6 6 Power 4 | . . . . . 2 . . . 1 1 . Propulsion 9 | . . . . . 1 . . . 1 4 3 Utility 4 | . . . . . 2 . . . . . 2 Weapon 7 | . 1 1 . . . . . . 3 1 1 Highest Loss Streak 5 | . 1 1 . . 2 . . . 3 5 3 To Critical Strikes . | . . . . . . . . . . . . Average Backups 6 | . 4 9 10 10 8 6 6 7 6 2 4 Power 1 | . 1 2 2 2 1 1 1 1 . . 1 Propulsion 2 | . 1 4 4 4 3 1 1 1 2 . . Utility 1 | . 1 2 3 3 1 1 1 1 1 1 2 Weapon . | . . . . . 1 2 2 2 1 . . Tool/Special . | . . . . . . . . . . . . Unused Backups 2 | . . . . . . . . . . . 2 Power . | . . . . . . . . . . . . Propulsion . | . . . . . . . . . . . . Utility 1 | . . . . . . . . . . . 1 Weapon . | . . . . . . . . . . . . Tool/Special 1 | . . . . . . . . . . . 1 Average Slot Usage (%) 89 | . 98 99 100 100 81 67 92 91 84 73 45 Engine 3 | . 9 . . . 5 7 7 . 1 1 . Core 6 | . 4 14 14 14 2 . . 6 4 . . Leg 15 | . 28 28 28 28 7 . . . . . . Flight 12 | . . . . . 18 29 30 29 25 33 13 Storage 10 | . 15 14 14 14 9 7 7 7 6 5 4 Processor 17 | . 11 14 14 14 9 10 30 30 32 23 22 Energy Gun 13 | . 18 13 14 14 12 10 15 15 11 7 3 Ballistic Gun 6 | . 9 14 14 14 3 . . . . . . Peak Build Rating 46 | 6 9 11 12 12 31 26 26 38 42 46 25 Average Rating 19 | 4 7 10 11 12 23 18 26 32 38 40 21 On Entrance 17 | . 6 9 11 12 12 15 26 26 38 30 25 Avg Prop Armor Cover (%) 5 | . . . . . . . . . . 6 4 Naked Turns . | . . . . . . . . . . . . Heaviest Build 25 | 13 23 19 19 19 25 16 16 16 21 25 8 Greatest Support 35 | 20 20 20 20 20 35 16 16 21 21 30 10 Greatest Overweight (x) 6 | 3 1 . . . 4 . . 1 . 6 1 Average Overweight (x) . | . . . . . . . . . . . . Largest Inventory Capacity 10 | 8 10 10 10 10 10 8 8 8 8 10 8 Average Capacity 9 | 7 9 10 10 10 8 8 8 8 8 8 7 Most Carried 10 | 1 8 10 10 10 10 7 6 8 8 5 4 Average Carried 6 | . 4 9 9 10 8 6 6 7 6 2 4 Final Capacity 10 | 8 10 10 10 10 8 8 8 8 8 8 5 Final Carried 10 | 1 8 10 10 10 8 6 6 8 6 4 4 Class Distribution -------------------- 40% | Mutant 27% | Scavenger-Mutant 25% | Sprinter 4% | Scavenger-Sprinter Dominant Class ---------------- Mutant | -10/Materials Scavenger-Mutant | -10/Mines Scavenger-Mutant | -10/Exiles Scavenger-Mutant | -9/Mines Sprinter | -8/Materials Scavenger-Sprinter | -7/Factory Scavenger-Sprinter | -7/Waste Sprinter | -7/Factory Sprinter | -6/Factory Mutant | -5/Factory Mutant | -5/Extension Resources | -11 -10 -10 -10 -9 -8 -7 -7 -7 -6 -5 -5 ----------- Run | Yrd Mat Min Exi Min Mat Fac Was Fac Fac Fac Ext Matter Collected 982 | 191 330 28 . 10 163 . . 105 40 115 . Remotely . | . . . . . . . . . . . . Salvage Created 1252 | . 334 . . . 297 . . 82 114 425 . Parts 60 | . 22 . . . 12 . . 4 2 20 . Haulers Intercepted 4 | . . . . . 1 . . 1 . 2 . Recyclers Shooed 3 | . . . . . . . . . 1 2 . Parts Field Recycled . | . . . . . . . . . . . . Retrieved Matter . | . . . . . . . . . . . . Parts Self-Destructed . | . . . . . . . . . . . . Prevented . | . . . . . . . . . . . . Parts Restored . | . . . . . . . . . . . . Kills | -11 -10 -10 -10 -9 -8 -7 -7 -7 -6 -5 -5 ------- Run | Yrd Mat Min Exi Min Mat Fac Was Fac Fac Fac Ext Combat Hostiles Destroyed 15 | . 8 . . . 5 . . . 2 . . Guns 12 | . 8 . . . 4 . . . . . . AOE 1 | . . . . . 1 . . . . . . Classes Destroyed 12 | . 2 . . . 4 . . 2 2 2 . Worker 1 | . . . . . . . . 1 . . . Builder 3 | . . . . . . . . . . 3 . Hauler 4 | . . . . . 1 . . 1 . 2 . Recycler 1 | . . . . . . . . . . 1 . Operator 2 | . . . . . 2 . . . . . . Watcher 1 | . . . . . . . . 1 . . . Swarmer 2 | . 2 . . . . . . . . . . Cutter 1 | . . . . . 1 . . . . . . Grunt 9 | . 6 . . . 3 . . . . . . Sentry 1 | . . . . . . . . . 1 . . Hunter 1 | . . . . . 1 . . . . . . Programmer 1 | . . . . . . . . . 1 . . Best Kill Streak 2 | . 2 . . . 2 . . 2 1 2 . Combat Bots Only 2 | . 2 . . . 2 . . . 1 . . Max Kills in Single Turn 1 | . 1 . . . 1 . . 1 1 1 . Gunslinging . | . . . . . . . . . . . . Exploded 1 | . . . . . 1 . . . . . . Melee . | . . . . . . . . . . . . Uniques/NPCs Destroyed . | . . . . . . . . . . . . Combat | -11 -10 -10 -10 -9 -8 -7 -7 -7 -6 -5 -5 -------- Run | Yrd Mat Min Exi Min Mat Fac Was Fac Fac Fac Ext Hostile Shots Fired 374 | . 61 21 . . 51 . . 6 79 57 99 Missed 159 | . 20 10 . . 22 . . 3 35 31 38 Hits 215 | . 41 11 . . 29 . . 3 44 26 61 Melee 1 | . . . . . 1 . . . . . . Projectile 214 | . 41 11 . . 28 . . 3 44 26 61 Critical Strikes 9 | . . . . . 1 . . . 3 1 4 Damage Taken 3436 | . 442 132 . . 549 . . 18 630 458 1207 Core 1414 | . 84 48 . . 123 . . . 146 81 932 Absorbed by Shields 84 | . . . . . . . . . . . 84 Core Remaining (%) 81 | 100 . . . 47 77 . . 100 82 . . Volleys Fired 117 | . 28 8 . . 29 . . 8 16 22 6 Largest 2 | . 2 2 . . 2 . . 2 2 2 1 Hottest 131 | . 80 85 . . 120 . . 121 131 116 56 Shots Fired 192 | . 56 13 . . 39 . . 16 21 41 6 Gun 192 | . 56 13 . . 39 . . 16 21 41 6 Cannon . | . . . . . . . . . . . . Launcher . | . . . . . . . . . . . . Special . | . . . . . . . . . . . . Kinetic 28 | . 12 8 . . 8 . . . . . . Thermal 85 | . . 2 . . 18 . . 16 21 22 6 Explosive . | . . . . . . . . . . . . Electromagnetic 79 | . 44 3 . . 13 . . . . 19 . Robot Hit Streak 13 | . 8 3 . . 7 . . 4 7 13 2 Robot Miss Streak 5 | . 3 3 . . 5 . . 3 2 2 2 Penetration Max . | . . . . . . . . . . . . Secondary Targets 1 | . . . . . 1 . . . . . . Max Gunslinging Chain 1 | . . . . . 1 . . . . . . Shots Hit Robots 123 | . 33 6 . . 29 . . 9 15 28 3 Core Hits 58 | . 15 2 . . 17 . . 5 3 14 2 Critical Kills . | . . . . . . . . . . . . Critical Parts Destroyed . | . . . . . . . . . . . . Critical Strikes 7 | . . . . . 2 . . . 2 2 1 Burn 7 | . . . . . 2 . . . 2 2 1 Melee Attacks 8 | . . . . . 8 . . . . . . Impact . | . . . . . . . . . . . . Slashing 8 | . . . . . 8 . . . . . . Piercing . | . . . . . . . . . . . . Sneak Attacks . | . . . . . . . . . . . . Combat Hostiles . | . . . . . . . . . . . . Follow-up Attacks . | . . . . . . . . . . . . Damage Inflicted 2217 | . 463 92 . 6 525 . . 147 264 664 56 Guns 2018 | . 412 70 . . 464 . . 147 264 605 56 Cannons . | . . . . . . . . . . . . Explosions 118 | . . . . . 59 . . . . 59 . Melee . | . . . . . . . . . . . . Ramming 81 | . 51 22 . 6 2 . . . . . . Kinetic 129 | . 51 41 . . 37 . . . . . . Thermal 1127 | . . 17 . . 297 . . 147 264 346 56 Explosive . | . . . . . . . . . . . . Electromagnetic 880 | . 361 12 . . 189 . . . . 318 . Impact . | . . . . . . . . . . . . Slashing . | . . . . . . . . . . . . Piercing . | . . . . . . . . . . . . Highest Corruption 4 | . 1 1 1 1 . . . . 4 . 3 Average Corruption 1 | . 1 1 1 1 . . . . 3 . 2 Corruption Purged . | . . . . . . . . . . . . Corruption Blocked . | . . . . . . . . . . . . Effects 16 | . . 5 2 3 . . . . 4 . 2 Message Errors 3 | . . 1 . 2 . . . . . . . Matter Fused 5 | . . 2 1 . . . . . 1 . 1 Heat Flow Errors 1 | . . . . . . . . . 1 . . Energy Discharges 1 | . . . . . . . . . 1 . . Data Loss (minor) 2 | . . . . 1 . . . . 1 . . Data Loss (major) 2 | . . . 1 . . . . . . . 1 Misfires 1 | . . 1 . . . . . . . . . Alerts 1 | . . 1 . . . . . . . . . Overload Shots . | . . . . . . . . . . . . Overflow Damage . | . . . . . . . . . . . . Projectiles . | . . . . . . . . . . . . Explosions . | . . . . . . . . . . . . Melee . | . . . . . . . . . . . . Knockbacks . | . . . . . . . . . . . . Impact . | . . . . . . . . . . . . Kinetic . | . . . . . . . . . . . . Secondary . | . . . . . . . . . . . . Self-Inflicted Damage 73 | . . . . . 33 . . . . 40 . Shots 2 | . . . . . 1 . . . . 1 . Rammed 2 | . . . . . 1 . . . 1 . . Targets Rammed 18 | . 12 3 . 1 1 . . . 1 . . Kicked 16 | . 12 3 . 1 . . . . . . . Crushed . | . . . . . . . . . . . . Highest Temperature 298 | . 222 69 . . 216 . . 298 203 118 . Average Temperature 71 | . 65 32 . . 65 . . 123 68 34 . Received Heat Transfer 795 | . 177 63 . . 207 . . . 111 27 210 Effects 1 | . . . . . . . . 1 . . . Interference 1 | . . . . . . . . 1 . . . Siege Activations . | . . . . . . . . . . . . Martial Activations . | . . . . . . . . . . . . Shielding Activations . | . . . . . . . . . . . . Robots Disrupted . | . . . . . . . . . . . . Combat Hostiles . | . . . . . . . . . . . . Robots Corrupted . | . . . . . . . . . . . . Combat Hostiles . | . . . . . . . . . . . . Parts Fried 2 | . . . . . 2 . . . . . . Impact Corruptions . | . . . . . . . . . . . . Robots Melted 2 | . . . . . . . . . 2 . . Combat Hostiles 2 | . . . . . . . . . 2 . . Parts Melted 7 | . . . . . . . . . 7 . . Heat Transferred 2801 | . . 37 . . 629 . . 370 703 877 185 Parts Sabotaged . | . . . . . . . . . . . . Parts Stolen . | . . . . . . . . . . . . Parts Stripped . | . . . . . . . . . . . . Power Chain Reactions 3 | . . . . . 2 . . . . 1 . Alert | -11 -10 -10 -10 -9 -8 -7 -7 -7 -6 -5 -5 ------- Run | Yrd Mat Min Exi Min Mat Fac Was Fac Fac Fac Ext Maximum Alert Level 1 | . . . . . . . . . . 1 . Low Security (%) 99 | 100 100 100 . 100 100 100 100 100 100 98 100 Level 1 . | . . . . . . . . . . 1 . Level 2 . | . . . . . . . . . . . . Level 3 . | . . . . . . . . . . . . Level 4 . | . . . . . . . . . . . . Level 5 . | . . . . . . . . . . . . High Security . | . . . . . . . . . . . . Max Security . | . . . . . . . . . . . . Peak Influence 296 | . 86 107 . . 45 17 15 47 60 296 144 Initial 144 | . . 11 . . . 3 . 3 . 22 144 Average 15 | . 13 19 . . 11 4 9 8 8 16 104 Influence Increases 1359 | . 275 127 . . 189 24 15 100 135 434 60 Destroy 0b10 Robot/C 400 | . 160 100 . . 100 . . . 40 . . Destroy 0b10 Robot/NC 60 | . . . . . 15 . . 15 . 30 . Destroy Leader 118 | . 40 20 . . 32 . . 4 20 2 . Allied During Kill 7 | . . 7 . . . . . . . . . Successful Hack 71 | . . . . . 11 24 . 36 . . . Disable Machine 30 | . 15 . . . 15 . . . . . . Destroy Structure 28 | . . . . . 16 . . . . 12 . Partial Spotted 60 | . . . . . . . 15 . . 30 15 Lose Combat Pursuer 585 | . 60 . . . . . . 45 75 360 45 Influence Decreases 1295 | . 245 157 . . 181 32 10 105 88 185 292 Entered New Map 203 | . . 19 . . . 5 . 2 . 25 152 Time Decay 826 | . 155 138 . . 141 27 10 103 58 114 80 Lost Part 186 | . 10 . . . 40 . . . 30 46 60 Purge Threat 80 | . 80 . . . . . . . . . . Squads Dispatched 18 | . 2 . . . 6 1 . 4 1 2 2 Investigation 9 | . 1 . . . 2 1 . 3 1 . 1 Extermination 2 | . . . . . . . . 1 . 1 . Reinforcement 7 | . 1 . . . 4 . . . . 1 1 Assault . | . . . . . . . . . . . . Garrison . | . . . . . . . . . . . . Intercept . | . . . . . . . . . . . . Searches Triggered . | . . . . . . . . . . . . Construction Impeded . | . . . . . . . . . . . . Haulers Reinforced . | . . . . . . . . . . . . Active Scanning Responses . | . . . . . . . . . . . . Cargo Convoy Interrupts . | . . . . . . . . . . . . Stealth | -11 -10 -10 -10 -9 -8 -7 -7 -7 -6 -5 -5 --------- Run | Yrd Mat Min Exi Min Mat Fac Was Fac Fac Fac Ext Distress Signals 4 | . . . . . 1 . . . . 1 2 Communications Jammed . | . . . . . . . . . . . . Distress Signals . | . . . . . . . . . . . . Times Spotted 109 | . 22 6 . . 14 . 4 4 9 30 20 Peak Tracking Total 16 | . 4 4 . . 4 . 4 5 7 12 16 Tactical Retreats 13 | . 2 . . . . . . 2 2 5 2 Traps | -11 -10 -10 -10 -9 -8 -7 -7 -7 -6 -5 -5 ------- Run | Yrd Mat Min Exi Min Mat Fac Was Fac Fac Fac Ext Traps Triggered 8 | . 1 . . . 1 1 . 1 1 1 2 Indirectly . | . . . . . . . . . . . . Trap Hack Attempts . | . . . . . . . . . . . . Triggered . | . . . . . . . . . . . . Disarmed . | . . . . . . . . . . . . Reprogrammed . | . . . . . . . . . . . . Reused . | . . . . . . . . . . . . Traps Extracted . | . . . . . . . . . . . . Installed . | . . . . . . . . . . . . Triggered . | . . . . . . . . . . . . Machines | -11 -10 -10 -10 -9 -8 -7 -7 -7 -6 -5 -5 ---------- Run | Yrd Mat Min Exi Min Mat Fac Was Fac Fac Fac Ext Machines Disabled 2 | . 1 . . . 1 . . . . . . Max in Single Turn 1 | . 1 . . . 1 . . . . . . Garrison Access 1 | . . . . . . . . 1 . . . Machines Repaired . | . . . . . . . . . . . . Machines Dismantled . | . . . . . . . . . . . . Machines Sabotaged . | . . . . . . . . . . . . Overloaded Fab Kills . | . . . . . . . . . . . . Hacking | -11 -10 -10 -10 -9 -8 -7 -7 -7 -6 -5 -5 --------- Run | Yrd Mat Min Exi Min Mat Fac Was Fac Fac Fac Ext Machines Accessed 27 | . 5 . 2 . 3 2 . 10 2 1 2 Terminals 15 | . 5 . . . 2 1 . 5 . . 2 Fabricators 2 | . . . . . . . . . 1 1 . Repair Stations . | . . . . . . . . . . . . Recycling Units 4 | . . . . . 1 1 . 1 1 . . Scanalyzers 3 | . . . . . . . . 3 . . . Garrison Access 1 | . . . . . . . . 1 . . . Total Hacks 57 | . 16 . 5 . 6 4 . 16 4 1 5 Successful 30 | . 4 . 5 . 4 2 . 11 3 1 . Failed 26 | . 12 . . . 2 2 . 4 1 . 5 Catastrophic 6 | . 3 . . . . . . 1 . . 2 Database Lockouts 1 | . . . . . . . . 1 . . . Manual 19 | . 13 . 1 . 3 . . 1 . 1 . Terminals 32 | . 16 . . . 3 3 . 5 . . 5 Fabricators 4 | . . . . . . . . . 3 1 . Repair Stations . | . . . . . . . . . . . . Recycling Units 6 | . . . . . 3 1 . 1 1 . . Scanalyzers 9 | . . . . . . . . 9 . . . Garrison Access 1 | . . . . . . . . 1 . . . Terminal Hacks 16 | . 4 . 5 . 2 2 . 3 . . . Record 6 | . . . 4 . . 1 . 1 . . . Part Schematic 1 | . . . . . 1 . . . . . . Open DSF 2 | . . . . . . . . 2 . . . Terminal Index 1 | . . . . . . 1 . . . . . Alert Level 1 | . 1 . . . . . . . . . . Unreport Threat 1 | . 1 . . . . . . . . . . Transport Status 1 | . 1 . . . . . . . . . . Hauler Manifests 1 | . 1 . . . . . . . . . . Zone Layout 1 | . . . . . 1 . . . . . . Proto ID Catalog 1 | . . . 1 . . . . . . . . Fabricator Hacks 3 | . . . . . . . . . 2 1 . Network Status 1 | . . . . . . . . . . 1 . Load Schematic 1 | . . . . . . . . . 1 . . Build 1 | . . . . . . . . . 1 . . Repair Station Hacks . | . . . . . . . . . . . . Recycling Unit Hacks 4 | . . . . . 2 . . 1 1 . . Report Inventory 4 | . . . . . 2 . . 1 1 . . Scanalyzer 6 | . . . . . . . . 6 . . . Insert Component 3 | . . . . . . . . 3 . . . Analyze 2 | . . . . . . . . 2 . . . Retrieve Study 1 | . . . . . . . . 1 . . . Garrison Access Hacks 1 | . . . . . . . . 1 . . . Seal Access 1 | . . . . . . . . 1 . . . Unauthorized Hacks . | . . . . . . . . . . . . Terminals . | . . . . . . . . . . . . Fabricators . | . . . . . . . . . . . . Repair Stations . | . . . . . . . . . . . . Recycling Units . | . . . . . . . . . . . . Scanalyzers . | . . . . . . . . . . . . Garrison Access . | . . . . . . . . . . . . Data Cores Recovered . | . . . . . . . . . . . . Used . | . . . . . . . . . . . . Hacking Detections 21 | . 5 . . . 3 2 . 7 1 1 2 Full Trace Events 7 | . 1 . . . 1 1 . 2 1 . 1 Feedback Events 1 | . 1 . . . . . . . . . . Corruption 1 | . 1 . . . . . . . . . . Feedback Blocked . | . . . . . . . . . . . . Robot Schematics Acquired . | . . . . . . . . . . . . Robots Built . | . . . . . . . . . . . . Authchips . | . . . . . . . . . . . . Time . | . . . . . . . . . . . . Total Robot Build Rating . | . . . . . . . . . . . . Part Schematics Acquired 2 | . . . . . 1 . . 1 . . . Parts Built 1 | . . . . . . . . . 1 . . Authchips . | . . . . . . . . . . . . Time 116 | . . . . . . . . . 116 . . Total Part Build Rating 3 | . . . . . . . . . 3 . . Part Studies Acquired 1 | . . . . . . . . 1 . . . Parts Repaired . | . . . . . . . . . . . . Time . | . . . . . . . . . . . . Parts Recycled . | . . . . . . . . . . . . Recycled Matter . | . . . . . . . . . . . . Retrieved Matter . | . . . . . . . . . . . . Retrieved Components . | . . . . . . . . . . . . Parts Scanalyzed 1 | . . . . . . . . 1 . . . Part Schematics Acquired 1 | . . . . . . . . 1 . . . Parts Damaged . | . . . . . . . . . . . . Bothacking | -11 -10 -10 -10 -9 -8 -7 -7 -7 -6 -5 -5 ------------ Run | Yrd Mat Min Exi Min Mat Fac Was Fac Fac Fac Ext Used RIF Installer . | . . . . . . . . . . . . Robots Hacked . | . . . . . . . . . . . . Non-combat . | . . . . . . . . . . . . Combat . | . . . . . . . . . . . . Robot Hacks Applied . | . . . . . . . . . . . . Relay Couplers Released . | . . . . . . . . . . . . Fabnet Peak Effective % . | . . . . . . . . . . . . Robots Rewired . | . . . . . . . . . . . . Allies Hacked . | . . . . . . . . . . . . Hacks Repelled . | . . . . . . . . . . . . Allies | -11 -10 -10 -10 -9 -8 -7 -7 -7 -6 -5 -5 -------- Run | Yrd Mat Min Exi Min Mat Fac Was Fac Fac Fac Ext Total Allies 4 | . . 1 . 2 . . 1 . . . . Largest Group 2 | . . 1 . 2 1 . 1 . . . . Highest-Rated Group 43 | . . 31 . 43 31 . 31 . . . . Highest-Rated Ally 31 | . . 31 . 31 31 . 31 . . . . Total Orders . | . . . . . . . . . . . . Ally Attacks 35 | . . 22 . . 5 . 8 . . . . Total Damage 422 | . . 254 . . 41 . 127 . . . . Kills 6 | . . 6 . . . . . . . . . Allies Corrupted . | . . . . . . . . . . . . Allies Melted . | . . . . . . . . . . . . Intel | -11 -10 -10 -10 -9 -8 -7 -7 -7 -6 -5 -5 ------- Run | Yrd Mat Min Exi Min Mat Fac Was Fac Fac Fac Ext Active Infowar (turns) 1125 | . . . . . . . . . 408 544 173 T.N.C. 1125 | . . . . . . . . . 408 544 173 Robot Analysis Total . | . . . . . . . . . . . . Derelict Logs Recovered 5 | . . 2 . 3 . . . . . . . Drone Launches . | . . . . . . . . . . . . Drone Recoveries . | . . . . . . . . . . . . Exploration | -11 -10 -10 -10 -9 -8 -7 -7 -7 -6 -5 -5 ------------- Run | Yrd Mat Min Exi Min Mat Fac Was Fac Fac Fac Ext Turns Passed 4550 | 85 1019 631 283 431 438 116 28 393 409 544 173 Spaces Moved 5514 | 60 700 505 235 359 598 303 98 1251 380 640 385 Core 159 | 9 . . . . . . . . . 121 29 Treads . | . . . . . . . . . . . . Legs 1929 | 51 700 505 235 359 79 . . . . . . Wheels . | . . . . . . . . . . . . Hover . | . . . . . . . . . . . . Flight 3426 | . . . . . 519 303 98 1251 380 519 356 Fastest Speed 21 | 50 120 120 120 120 29 28 28 27 26 21 34 Average Speed 66 | 126 126 120 120 120 51 28 28 27 26 58 37 Slowest Speed 350 | 200 190 120 120 120 335 28 28 107 29 350 100 Overloaded Moves . | . . . . . . . . . . . . Propulsion Burnouts . | . . . . . . . . . . . . Robots Hopped 29 | . . . . . . 1 . 5 1 11 11 Potential Cave-ins 3 | . . . . . 3 . . . . . . Cave-ins Triggered . | . . . . . . . . . . . . Exploration Rate (%) 44 | 4 90 82 60 76 26 8 76 29 11 12 55 Regions Visited 11 Branch Regions 4 Pre-discovered Areas 1 | . . 1 . . . . . . . . . Known Exits Taken 8 | . 1 1 1 1 1 . . 1 1 1 . Unknown Exits Taken 1 | 1 . . . . . . . . . . . Scrap Searched 2 | . . . . 2 . . . . . . . Spaces Dug 7 | . . . . . 7 . . . . . . Terrain Destroyed 25 | . . . . . 20 . . . . 5 . Melee 7 | . . . . . 7 . . . . . . Projectile 1 | . . . . . 1 . . . . . . AOE 17 | . . . . . 12 . . . . 5 . Terrain Rammed . | . . . . . . . . . . . . Walls Destroyed . | . . . . . . . . . . . . Machines Disabled . | . . . . . . . . . . . . Actions | -11 -10 -10 -10 -9 -8 -7 -7 -7 -6 -5 -5 --------- Run | Yrd Mat Min Exi Min Mat Fac Was Fac Fac Fac Ext Total 6148 | 66 772 518 236 359 679 331 97 1276 663 753 398 Wait 411 | . 21 . . . 9 23 . 3 264 91 . Move 5452 | 59 699 504 234 358 598 301 97 1240 377 618 367 Hop 24 | . . . . . . 1 . 5 1 10 7 Pick Up 13 | 1 3 2 1 . 2 . . 4 . . . Fast Attach 29 | 6 2 1 . . 9 4 . 3 . 4 . Attach 18 | . 1 . . . 7 2 . . 3 5 . Detach 6 | . 1 . . . 3 . . . . 2 . Swap 15 | . 5 . . . 3 . . 5 1 1 . Drop 20 | . . . 1 . 11 . . 8 . . . Fire 117 | . 28 8 . . 29 . . 8 16 22 6 Melee 8 | . . . . . 8 . . . . . . Ram 1 | . . . . . . . . . 1 . . Kick 16 | . 12 3 . 1 . . . . . . . Crush . | . . . . . . . . . . . . Escape Stasis 18 | . . . . . . . . . . . 18 Rewire . | . . . . . . . . . . . . Trap . | . . . . . . . . . . . . Miscellaneous . | . . . . . . . . . . . . Route ------- -11/Scrapyard -10/Materials (discovered 4 exits: *Mat x3 / *Min) -10/Mines (discovered 4 exits: *Mat x2 / *Exi / *Sub) -10/Exiles -9/Mines -8/Materials (discovered 2 exits: *Fac / *Sto) -7/Factory -7/Waste -7/Factory (discovered 4 exits: *Fac x2 / *Low x2) -6/Factory -5/Factory -5/Extension History --------- Turn | Location | Event 2 | -11/Scrapyard | Met Revision 17 20 | -11/Scrapyard | Discovered new exit (range 16) 86 | -11/Scrapyard | Entered Materials 313 | -10/Materials | Build established: Mutant 376 | -10/Materials | Discovered new exit (range 5) 392 | -10/Materials | Identified exit to Materials 474 | -10/Materials | Discovered new exit (range 13) 639 | -10/Materials | Discovered exit to Materials (range 14) 905 | -10/Materials | Discovered exit to Materials (range 9) 1104 | -10/Materials | Identified exit to Mines 1105 | -10/Materials | Entered Mines 1108 | -10/Mines | Received a Mining Laser from a helpful Derelict 1282 | -10/Mines | Core integrity fell below 50% 1332 | -10/Mines | Assembled infested the area 1503 | -10/Mines | Discovered new exit (range 6) 1509 | -10/Mines | Identified exit to Subcaves 1597 | -10/Mines | Build established: Scavenger-Mutant 1657 | -10/Mines | Learned location of Storage (-8) 1661 | -10/Mines | Discovered exit to Materials (range 12) 1731 | -10/Mines | Discovered new exit (range 5) 1735 | -10/Mines | Identified exit to Exiles 1736 | -10/Mines | Entered Exiles 1765 | -10/Exiles | Met 8R-AWN 1786 | -10/Exiles | Met EX-HEX 1820 | -10/Exiles | Met EX-BIN 1837 | -10/Exiles | Aligned with FarCom system 1838 | -10/Exiles | Given EX-Vault access code 1878 | -10/Exiles | Opened EX-Vault 1899 | -10/Exiles | Found Chronowheel 1925 | -10/Exiles | Warned to stay clear of 0b10 Research branches 1962 | -10/Exiles | Met EX-DEC 2003 | -10/Exiles | Discovered new exit (range 14) 2018 | -10/Exiles | Identified exit to Mines 2019 | -10/Exiles | Left Exiles lab with Chronowheel 2019 | -10/Exiles | Entered Mines 2046 | -9/Mines | Learned Materials machine intel 2423 | -9/Mines | Discovered new exit (range 15) 2430 | -9/Mines | Learned Materials interactive machine intel 2436 | -9/Mines | Learned Materials emergency access door positions 2449 | -9/Mines | Identified exit to Materials 2450 | -9/Mines | Entered Materials 2450 | -8/Materials | Accompanied by 1 ally 2450 | -8/Materials | Evolved 4 slots: Propulsion x1, Utility x2, Weapon x1 2452 | -8/Materials | Loaded intel: 68 machine locations 2453 | -8/Materials | Loaded intel: 18 interactive machine locations 2455 | -8/Materials | Led the pair of lost Derelicts to an unsafe place 2483 | -8/Materials | Discovered new exit (range 16) 2641 | -8/Materials | Identified exit to Storage 2886 | -8/Materials | Discovered new exit (range 3) 2887 | -8/Materials | Identified exit to Factory 2888 | -8/Materials | Entered Factory 2888 | -7/Factory | Evolved 2 slots: Propulsion x1, Utility x1 3004 | -7/Factory | Sucked down chute 3004 | -7/Factory | Entered Waste 3005 | -7/Waste | Met a frightened Derelict 3007 | -7/Waste | Spotted C-40 Crusher 3007 | -7/Waste | Spotted C-40 Crusher 3007 | -7/Waste | Spotted C-40 Crusher 3009 | -7/Waste | Spotted C-40 Crusher 3012 | -7/Waste | Spotted C-40 Crusher 3012 | -7/Waste | Spotted C-40 Crusher 3028 | -7/Waste | Discovered new exit (range 13) 3031 | -7/Waste | Identified exit to Factory 3032 | -7/Waste | Entered Factory 3050 | -7/Factory | Identified exit to DSF 3076 | -7/Factory | Discovered new exit (range 12) 3166 | -7/Factory | Discovered new exit (range 9) 3180 | -7/Factory | Identified exit to Lower Caves 3238 | -7/Factory | Central database locked down 3337 | -7/Factory | Discovered exit to Lower Caves (range 12) 3355 | -7/Factory | Build established: Sprinter 3422 | -7/Factory | Discovered new exit (range 14) 3425 | -7/Factory | Identified exit to Factory 3425 | -7/Factory | Entered another Factory area 3425 | -6/Factory | Evolved 2 slots: Utility x2 3554 | -6/Factory | Fabricated Imp. VTOL Module? 3818 | -6/Factory | Discovered new exit (range 16) 3834 | -6/Factory | Identified exit to Factory 3834 | -6/Factory | Entered another Factory area 3834 | -5/Factory | Evolved 2 slots: Propulsion x2 3862 | -5/Factory | Lost 3 parts (1n2w) 4368 | -5/Factory | Discovered new exit (range 13) 4372 | -5/Factory | Identified exit to Extension 4378 | -5/Factory | Entered Extension 4396 | -5/Extension | Lost 5 parts (1p3n1w) 4403 | -5/Extension | Spotted B-75 Beast 4526 | -5/Extension | Spotted B-75 Beast 4529 | -5/Extension | Core integrity fell below 50% 4532 | -5/Extension | Lost 3 parts (2n1w) 4544 | -5/Extension | Core integrity fell below 20% 4551 | -5/Extension | Destroyed by H-66 Slayer with Gauss Rifle Last Messages --------------- 04516_ Field strength at 1. 04516_ Stasis field depleted. 04519_ Slug penetrates Wall. 04525_ Penetrated by Slug. [Achievement: Cya!] 04529_ System corrupted: Substantial component data lost. 04529_ Slug penetrates Y-64 Sentinel. 04535_ Sml. Storage Unit destroyed. 04537_ Slug penetrates Wall. 04539_ Imp. Targeting Computer destroyed. 04540_ Penetrated by Slug. 04540_ Slug penetrates Wall. 04543_ Penetrated by Slug. 04543_ Cld. VTOL Module destroyed. 04546_ Penetrated by Slug. 04546_ Slug penetrates Wall. 04549_ Penetrated by Slug. 04551_ System corrupted: Matter fused (-7). 04551_ Penetrated by Slug. Map ----- +----------------------------------------------------+ | ?????????????????????????????????????????????????? | | ?????????????????????????????????????????????????? | | ?????????????????????????????????????????????????? | | ?????????????????????????????????????????????????? | | ?????????????????????????????????????????????????? | | ?????????????????????????????????????????????????? | | ?????????????????????????????????????????????????? | | ?????????????????????????????????????????????????? | | ?????????????????????????????????????????????????? | | ?????????????????????????????????????????????????? | | ?????????????????????????????????????????????????? | | ?????????????????????????????????????????????????? | | ?????????????????????????????????????????????????? | | ?????????????????????????????????????????????????? | | ?????????????????????????????????????????????????? | | ?????????????????????????????????????????????????? | | ?????????????????????????????????????????????????? | | ?????????????????????????????????????????????????? | | ?????????????????????????????????????????????????? | | ?????????????????????????????????????????????????? | | ?????????????????????????????????????????????????? | | ?????????????????????????????????????????????????? | | ?????????????????????????????????????????????????? | | ?????????????????????????????????????????????????? | | ##################################???????????????? | | @ ????????? | | ????????? | | h ????????? | | A R ?????????? | | hR R A ?????????? | | #######################################??????????? | | ?????????????????????????????????????????????????? | | ?????????????????????????????????????????????????? | | ?????????????????????????????????????????????????? | | ?????????????????????????????????????????????????? | | ?????????????????????????????????????????????????? | | ?????????????????????????????????????????????????? | | ?????????????????????????????????????????????????? | | | | | | | | | | | | | | | | | | | | | | | | | +----------------------------------------------------+ Best States ------------- Heat Dissipation 45 Energy Generation 14 Energy Capacity 280 Matter Stores 300 Matter Capacity 300 Sight Range 16 Terrain Scan Density 210 Evasion (%) 65 Targeting Accuracy 12 Offensive Hacking 10 Item Schematics ----------------- VTOL Module | -8/Materials | Hacked Imp. VTOL Module | -7/Factory | Scanalyzed Robot Schematics ------------------ None Fabricated ------------ Imp. VTOL Module | x1 | -6/Factory Repaired ---------- Nothing Studied --------- Flight Unit | -7/Factory | Hacked Alien Tech Used ----------------- None Achievements -------------- Cya! Just What I Needed Challenges ------------ None Game ------ Seed WarpExpertFemtoactuators Manual? 0 Play Time 01:06:57 Cumulative 3.1 hours Start 2026.02.09 @ 18:39:37 End 2026.02.09 @ 19:47:36 Sessions 1 Manual Loads 0 Difficulty Rogue Special Mode None Game No. 8 Rogue 8 Adventurer 0 Explorer 0 Win Type - Total 0 Types 0/0/0/0/0/0/0/0/0/0 Lore% 2 Gallery% 5 Achievement% 15 Wizard Run 0 Options --------- Layout 1 ASCII 0 Keyboard 1 Movement Vi Keybinds 0 Fullscreen 1 Font 24/Smallcaps Map View 50x35 Zoom Use 0% Tactical HUD 1 Map Filters NONE Filters NONE Steam 1 RUN: 68992b8c-658d-46cf-a871-368775def18d